[Event "Mitropa Online Cup Women 2021"]
[Site "Hybrid"]
[Date "2021.05.04"]
[Round "6.2"]
[White "Juhasz, Barbara"]
[Black "Worek, Joanna"]
[Result "1-0"]
[ECO "C07"]
[WhiteElo "2211"]
[BlackElo "2322"]
[Annotator "NA"]
[PlyCount "53"]
[EventDate "2021.05.04"]
[EventType "team-tourn"]
[EventCountry "NET"]
[SourceTitle "playchess.com"]
[Source "ChessBase"]
[SourceQuality "1"]
[WhiteTeam "Hungary"]
[BlackTeam "Czech Republic"]
[WhiteTeamCountry "HUN"]
[BlackTeamCountry "CZE"]
[TimeControl "40/5400+30:1800+30"]

1. e4 {[%emt 0:00:00]} e6 {[%emt 0:00:06]} 2. d4 {[%emt 0:00:07]} d5 {[%emt 0:00:06]} 3. Nd2 {[%emt 0:00:05]} c5 {[%emt 0:00:29]} 4. exd5 {[%emt 0:00:18]} Qxd5 {[%emt 0:00:39]} 5. Ngf3 {[%emt 0:00:30]} cxd4 {[%emt 0:00:24]} 6. Bc4 {[%emt 0:00:12]} Qd7 {[%emt 0:00:18]} 7. O-O {[%emt 0:01:44]} a6 {[%emt 0:02:07]} 8. a4 {[%emt 0:01:18]} Nc6 {[%emt 0:04:37]} 9. Nb3 {[%emt 0:00:55]} Bd6 {[%emt 0:14:44]} 10. Nbxd4 {[%emt 0:09:17]} Nge7 {[%emt 0:05:24]} 11. Nxc6 {[%emt 0:19:02]} Qxc6 {[%emt 0:03:48]} 12. Bb5 {[%emt 0:02:44]} axb5 {[%emt 0:01:26]} 13. axb5 {[%emt 0:00:47]} Qxb5 {[%emt 0:00:52]} 14. Rxa8 {[%emt 0:00:14]} Bc7 {[%emt 0:00:09]} 15. b3 {[%emt 0:06:13]} b6 {[%emt 0:14:53]} 16. Bb2 {[%emt 0:09:58]} f6 {[%emt 0:17:50]} 17. Ra7 {[%emt 0:19:52]} Bb8 {[%emt 0:02:09]} 18. Ra8 {[%emt 0:02:58]} Bc7 {[%emt 0:04:44]} 19. Re1 {[%emt 0:01:05]} Kf7 {[%emt 0:11:30]} 20. Nd4 {[%emt 0:04:59]} Qd5 {[%emt 0:00:22]} 21. Ra7 {[%emt 0:02:37]} Bb8 {[%emt 0:04:15]} 22. c4 {[%emt 0:05:24]} Qd8 {[%emt 0:03:37]} 23. Rxe7+ {[%emt 0:01:39]} Qxe7 {[%emt 0:00:15]} 24. Nc6 {[%emt 0:00:06]} Qc7 {[%emt 0:00:28]} 25. Nxb8 {[%emt 0:00:06]} Qxb8 {[%emt 0:00:07]} 26. Qh5+ {[%emt 0:00:08]} g6 {[%emt 0:00:03]} 27. Qf3 {[%emt 0:00:06]} 1-0

[Event "Mitropa Online Cup Women 2021"]
[Site "Hybrid"]
[Date "2021.05.04"]
[Round "6.2"]
[White "Richterova, Natasa"]
[Black "Gaal, Zsoka"]
[Result "1-0"]
[ECO "D38"]
[WhiteElo "2188"]
[BlackElo "2169"]
[Annotator "NA"]
[PlyCount "155"]
[EventDate "2021.05.04"]
[EventType "team-tourn"]
[EventCountry "NET"]
[SourceTitle "playchess.com"]
[Source "ChessBase"]
[SourceQuality "1"]
[WhiteTeam "Czech Republic"]
[BlackTeam "Hungary"]
[WhiteTeamCountry "CZE"]
[BlackTeamCountry "HUN"]
[TimeControl "40/5400+30:1800+30"]

1. d4 {[%emt 0:00:00]} Nf6 {[%emt 0:00:10]} 2. c4 {[%emt 0:00:15]} e6 {[%emt 0:00:07]} 3. Nf3 {[%emt 0:00:16]} d5 {[%emt 0:00:10]} 4. Nc3 {[%emt 0:00:35]} Bb4 {[%emt 0:01:10]} 5. Bg5 {[%emt 0:00:48]} h6 {[%emt 0:09:13]} 6. Bxf6 {[%emt 0:01:32]} Bxc3+ {[%emt 0:04:22]} 7. bxc3 {[%emt 0:00:10]} Qxf6 {[%emt 0:00:06]} 8. g3 {[%emt 0:02:10]} O-O {[%emt 0:03:49]} 9. Bg2 {[%emt 0:00:37]} c6 {[%emt 0:04:08]} 10. O-O {[%emt 0:01:06]} Nd7 {[%emt 0:06:55]} 11. Qb3 {[%emt 0:01:18]} Nb6 {[%emt 0:09:41]} 12. Ne5 {[%emt 0:16:54]} dxc4 {[%emt 0:03:01]} 13. Qb4 {[%emt 0:07:24]} Re8 {[%emt 0:09:35]} 14. a4 {[%emt 0:16:24]} Qe7 {[%emt 0:02:50]} 15. Qxe7 {[%emt 0:00:37]} Rxe7 {[%emt 0:00:04]} 16. a5 {[%emt 0:00:06]} Nd5 {[%emt 0:00:24]} 17. Rfc1 {[%emt 0:00:11]} Rb8 {[%emt 0:11:37]} 18. e4 {[%emt 0:02:59]} Nf6 {[%emt 0:01:25]} 19. Nxc4 {[%emt 0:05:14]} b5 {[%emt 0:01:35]} 20. axb6 {[%emt 0:02:01]} axb6 {[%emt 0:00:06]} 21. Rcb1 {[%emt 0:03:58]} b5 {[%emt 0:02:16]} 22. Ne5 {[%emt 0:00:08]} Rc7 {[%emt 0:02:01]} 23. Nd3 {[%emt 0:09:34]} Nd7 {[%emt 0:00:49]} 24. Bf1 {[%emt 0:19:06]} Kf8 {[%emt 0:06:22]} 25. Ra5 {[%emt 0:01:16]} Ke7 {[%emt 0:11:20]} 26. f4 {[%emt 0:00:13]} g6 {[%emt 0:02:57]} 27. e5 {[%emt 0:02:30]} Nb6 {[%emt 0:01:07]} 28. Nc5 {[%emt 0:00:39]} Bd7 {[%emt 0:01:22]} 29. Rba1 {[%emt 0:02:02]} Bc8 {[%emt 0:02:20]} 30. Bg2 {[%emt 0:01:16]} Nd5 {[%emt 0:00:27]} 31. Bxd5 {[%emt 0:01:24]} cxd5 {[%emt 0:00:32]} 32. Rb1 {[%emt 0:00:24]} Bd7 {[%emt 0:00:30]} 33. Kf2 {[%emt 0:00:53]} Rbc8 {[%emt 0:02:10]} 34. Ke2 {[%emt 0:00:25]} Be8 {[%emt 0:01:12]} 35. Kd2 {[%emt 0:00:27]} Bd7 {[%emt 0:00:14]} 36. Rb4 {[%emt 0:00:24]} Be8 {[%emt 0:00:30]} 37. Rb3 {[%emt 0:00:08]} Bc6 {[%emt 0:00:29]} 38. Rba3 {[%emt 0:01:05]} Bd7 {[%emt 0:00:39]} 39. Kc2 {[%emt 0:02:09]} Be8 {[%emt 0:00:23]} 40. Kb3 {[%emt 0:00:00]} Bd7 {[%emt 0:00:00]} 41. Kb4 {[%emt 0:02:15]} Be8 {[%emt 0:12:08]} 42. Ra1 {[%emt 0:05:55]} h5 {[%emt 0:01:00]} 43. Ra6 {[%emt 0:03:25]} Bc6 {[%emt 0:01:14]} 44. Ra7 {[%emt 0:06:08]} Kd8 {[%emt 0:03:38]} 45. Rxc7 {[%emt 0:02:48]} Rxc7 {[%emt 0:00:22]} 46. Ra6 {[%emt 0:00:18]} Kc8 {[%emt 0:02:12]} 47. Rb6 {[%emt 0:02:13]} Be8 {[%emt 0:02:37]} 48. Na6 {[%emt 0:04:44]} Ra7 {[%emt 0:00:55]} 49. Rb8+ {[%emt 0:00:33]} Kd7 {[%emt 0:00:05]} 50. Nc5+ {[%emt 0:00:12]} Ke7 {[%emt 0:00:05]} 51. Rb7+ {[%emt 0:00:13]} Rxb7 {[%emt 0:00:02]} 52. Nxb7 {[%emt 0:00:03]} f6 {[%emt 0:00:11]} 53. Nd6 {[%emt 0:01:18]} Bd7 {[%emt 0:00:12]} 54. Kc5 {[%emt 0:01:53]} g5 {[%emt 0:02:35]} 55. fxg5 {[%emt 0:04:53]} fxg5 {[%emt 0:00:12]} 56. Kb6 {[%emt 0:01:24]} Kd8 {[%emt 0:01:14]} 57. Nf7+ {[%emt 0:00:26]} Ke7 {[%emt 0:00:25]} 58. Nxg5 {[%emt 0:00:03]} Be8 {[%emt 0:00:04]} 59. Kc7 {[%emt 0:00:16]} Bg6 {[%emt 0:00:41]} 60. Nh3 {[%emt 0:00:20]} Bf7 {[%emt 0:03:30]} 61. Nf4 {[%emt 0:00:06]} Be8 {[%emt 0:00:03]} 62. Nd3 {[%emt 0:00:21]} Bg6 {[%emt 0:00:35]} 63. Nb4 {[%emt 0:00:05]} Bf5 {[%emt 0:00:27]} 64. Nc6+ {[%emt 0:02:12]} Kf7 {[%emt 0:00:36]} 65. Kd6 {[%emt 0:00:11]} Ke8 {[%emt 0:00:04]} 66. Na7 {[%emt 0:00:19]} Kf7 {[%emt 0:00:21]} 67. Nxb5 {[%emt 0:00:08]} Kg6 {[%emt 0:00:06]} 68. Nc7 {[%emt 0:00:19]} Kf7 {[%emt 0:00:27]} 69. Kd7 {[%emt 0:00:51]} Kf8 {[%emt 0:00:31]} 70. Nb5 {[%emt 0:00:21]} Kg7 {[%emt 0:00:12]} 71. Ke7 {[%emt 0:00:14]} Kg6 {[%emt 0:00:11]} 72. Nc7 {[%emt 0:00:19]} Kg5 {[%emt 0:00:05]} 73. Nxe6+ {[%emt 0:00:10]} Kg4 {[%emt 0:00:13]} 74. Nf4 {[%emt 0:01:05]} h4 {[%emt 0:00:16]} 75. Nxd5 {[%emt 0:00:14]} h3 {[%emt 0:00:04]} 76. Nf4 {[%emt 0:00:19]} Kf3 {[%emt 0:00:06]} 77. Kf6 {[%emt 0:00:09]} Bg4 {[%emt 0:00:08]} 78. e6 {[%emt 0:00:10]} 1-0

[Event "Mitropa Online Cup Women 2021"]
[Site "Hybrid"]
[Date "2021.05.04"]
[Round "6.2"]
[White "Terbe, Zsuzsanna"]
[Black "Kanakova, Natalie"]
[Result "1-0"]
[ECO "D27"]
[WhiteElo "2186"]
[BlackElo "2179"]
[Annotator "NA"]
[PlyCount "105"]
[EventDate "2021.05.04"]
[EventType "team-tourn"]
[EventCountry "NET"]
[SourceTitle "playchess.com"]
[Source "ChessBase"]
[SourceQuality "1"]
[WhiteTeam "Hungary"]
[BlackTeam "Czech Republic"]
[WhiteTeamCountry "HUN"]
[BlackTeamCountry "CZE"]
[TimeControl "40/5400+30:1800+30"]

1. d4 {[%emt 0:00:00]} d5 {[%emt 0:00:07]} 2. c4 {[%emt 0:00:28]} dxc4 {[%emt 0:00:24]} 3. Nf3 {[%emt 0:00:30]} Nf6 {[%emt 0:00:43]} 4. e3 {[%emt 0:00:40]} e6 {[%emt 0:00:11]} 5. Bxc4 {[%emt 0:00:19]} c5 {[%emt 0:00:39]} 6. O-O {[%emt 0:04:29]} a6 {[%emt 0:00:45]} 7. Bb3 {[%emt 0:10:15]} Nc6 {[%emt 0:07:15]} 8. Nc3 {[%emt 0:05:00]} cxd4 {[%emt 0:02:34]} 9. exd4 {[%emt 0:00:19]} Be7 {[%emt 0:00:36]} 10. Bg5 {[%emt 0:07:36]} O-O {[%emt 0:03:16]} 11. Qd2 {[%emt 0:01:26]} b5 {[%emt 0:11:36]} 12. a3 {[%emt 0:06:01]} Bb7 {[%emt 0:01:45]} 13. Qf4 {[%emt 0:05:26]} Na5 {[%emt 0:11:13]} 14. Bc2 {[%emt 0:02:54]} Nh5 {[%emt 0:19:56]} 15. Qh4 {[%emt 0:07:19]} Bxg5 {[%emt 0:00:56]} 16. Nxg5 {[%emt 0:31:37]} h6 {[%emt 0:01:15]} 17. Bh7+ {[%emt 0:01:57]} Kh8 {[%emt 0:00:48]} 18. Nxf7+ {[%emt 0:00:17]} Rxf7 {[%emt 0:00:33]} 19. Qxh5 {[%emt 0:00:05]} Rf6 {[%emt 0:10:21]} 20. Bc2 {[%emt 0:03:31]} Nc4 {[%emt 0:05:44]} 21. Qg4 {[%emt 0:04:34]} Nxb2 {[%emt 0:04:03]} 22. Ne4 {[%emt 0:01:19]} Bxe4 {[%emt 0:07:51]} 23. Qxe4 {[%emt 0:00:36]} Kg8 {[%emt 0:00:09]} 24. Rfe1 {[%emt 0:04:35]} Rc8 {[%emt 0:01:05]} 25. Bb3 {[%emt 0:00:29]} Nc4 {[%emt 0:00:15]} 26. a4 {[%emt 0:00:27]} Qd5 {[%emt 0:01:40]} 27. Qg4 {[%emt 0:00:41]} h5 {[%emt 0:07:10]} 28. Qh4 {[%emt 0:00:27]} Rg6 {[%emt 0:00:13]} 29. g3 {[%emt 0:00:31]} Rg4 {[%emt 0:00:48]} 30. Qe7 {[%emt 0:00:18]} Rxd4 {[%emt 0:00:08]} 31. Qxe6+ {[%emt 0:00:34]} Qxe6 {[%emt 0:00:05]} 32. Rxe6 {[%emt 0:00:02]} Rd3 {[%emt 0:00:39]} 33. Bd1 {[%emt 0:00:54]} bxa4 {[%emt 0:00:35]} 34. Bxa4 {[%emt 0:00:18]} a5 {[%emt 0:00:12]} 35. Ra6 {[%emt 0:00:56]} Rc5 {[%emt 0:00:47]} 36. h4 {[%emt 0:00:31]} Nb2 {[%emt 0:01:07]} 37. Ra8+ {[%emt 0:00:21]} Kf7 {[%emt 0:00:06]} 38. Be8+ {[%emt 0:00:21]} Ke7 {[%emt 0:00:15]} 39. Re1+ {[%emt 0:00:11]} Kd6 {[%emt 0:00:38]} 40. Ra6+ {[%emt 0:00:00]} Kd5 {[%emt 0:00:00]} 41. Re2 {[%emt 0:07:28]} Nc4 {[%emt 0:10:01]} 42. Bf7+ {[%emt 0:07:52]} Kd4 {[%emt 0:00:10]} 43. Ra2 {[%emt 0:00:26]} Ne5 {[%emt 0:12:44]} 44. Bxh5 {[%emt 0:04:01]} Nc6 {[%emt 0:09:11]} 45. Ra4+ {[%emt 0:03:37]} Kc3 {[%emt 0:00:53]} 46. Be8 {[%emt 0:01:20]} Nd4 {[%emt 0:01:00]} 47. R4xa5 {[%emt 0:01:57]} Rc8 {[%emt 0:00:20]} 48. Bh5 {[%emt 0:01:03]} Kd2 {[%emt 0:00:40]} 49. Ra2+ {[%emt 0:00:58]} Rc2 {[%emt 0:00:30]} 50. Rxc2+ {[%emt 0:00:19]} Nxc2 {[%emt 0:00:04]} 51. Bg6 {[%emt 0:00:36]} Ra3 {[%emt 0:00:19]} 52. Rd6+ {[%emt 0:00:17]} Kc1 {[%emt 0:00:13]} 53. Rc6 {[%emt 0:00:06]} 1-0

[Event "Mitropa Online Cup Women 2021"]
[Site "Hybrid"]
[Date "2021.05.04"]
[Round "6.3"]
[White "Hakimifard, Ghazal"]
[Black "Trippold, Denise"]
[Result "1-0"]
[ECO "C09"]
[WhiteElo "2265"]
[BlackElo "2145"]
[Annotator "NA"]
[PlyCount "57"]
[EventDate "2021.05.04"]
[EventType "team-tourn"]
[EventCountry "NET"]
[SourceTitle "playchess.com"]
[Source "ChessBase"]
[SourceQuality "1"]
[WhiteTeam "Switzerland"]
[BlackTeam "Austria"]
[WhiteTeamCountry "SUI"]
[BlackTeamCountry "AUT"]
[TimeControl "40/5400+30:1800+30"]

1. e4 {[%emt 0:00:11]} e6 {[%emt 0:00:22]} 2. d4 {[%emt 0:00:05]} d5 {[%emt 0:00:05]} 3. Nd2 {[%emt 0:00:05]} c5 {[%emt 0:00:09]} 4. exd5 {[%emt 0:00:06]} exd5 {[%emt 0:00:10]} 5. Ngf3 {[%emt 0:00:13]} Nc6 {[%emt 0:00:10]} 6. Bb5 {[%emt 0:00:08]} Qe7+ {[%emt 0:00:14]} 7. Be2 {[%emt 0:00:06]} Qc7 {[%emt 0:00:34]} 8. O-O {[%emt 0:00:04]} Nf6 {[%emt 0:00:27]} 9. Re1 {[%emt 0:00:24]} cxd4 {[%emt 0:00:28]} 10. Nb3 {[%emt 0:00:12]} Bb4 {[%emt 0:00:51]} 11. Bd2 {[%emt 0:00:10]} Bxd2 {[%emt 0:00:11]} 12. Qxd2 {[%emt 0:00:04]} O-O {[%emt 0:00:21]} 13. Nfxd4 {[%emt 0:00:05]} Bd7 {[%emt 0:00:33]} 14. Nxc6 {[%emt 0:00:04]} bxc6 {[%emt 0:00:15]} 15. c4 {[%emt 0:00:46]} dxc4 {[%emt 0:13:01]} 16. Bxc4 {[%emt 0:07:19]} Rfe8 {[%emt 0:02:03]} 17. Nc5 {[%emt 0:02:09]} Bf5 {[%emt 0:02:02]} 18. Qg5 {[%emt 0:02:20]} Bg6 {[%emt 0:02:26]} 19. Nd3 {[%emt 0:07:33]} Be4 {[%emt 0:15:17]} 20. Rac1 {[%emt 0:09:15]} Qb6 {[%emt 0:08:11]} 21. b3 {[%emt 0:11:42]} Rad8 {[%emt 0:08:15]} 22. Ne5 {[%emt 0:04:38]} Bd5 {[%emt 0:02:03]} 23. Re3 {[%emt 0:05:24]} h6 {[%emt 0:13:43]} 24. Qf4 {[%emt 0:02:37]} Qc7 {[%emt 0:13:39]} 25. Qf5 {[%emt 0:21:43]} Bxc4 {[%emt 0:01:25]} 26. Nxc4 {[%emt 0:00:06]} Rxe3 {[%emt 0:02:02]} 27. Nxe3 {[%emt 0:00:04]} Rd2 {[%emt 0:02:18]} 28. a3 {[%emt 0:03:12]} Rc2 {[%emt 0:10:01]} 29. Qxc2 {[%emt 0:00:16]} 1-0

[Event "Mitropa Online Cup Women 2021"]
[Site "Hybrid"]
[Date "2021.05.04"]
[Round "6.3"]
[White "Froewis, Annika"]
[Black "Mueller-Seps, Monika"]
[Result "1-0"]
[ECO "D00"]
[WhiteElo "2143"]
[BlackElo "2243"]
[Annotator "NA"]
[PlyCount "169"]
[EventDate "2021.05.04"]
[EventType "team-tourn"]
[EventCountry "NET"]
[SourceTitle "playchess.com"]
[Source "ChessBase"]
[SourceQuality "1"]
[WhiteTeam "Austria"]
[BlackTeam "Switzerland"]
[WhiteTeamCountry "AUT"]
[BlackTeamCountry "SUI"]
[TimeControl "40/5400+30:1800+30"]

1. d4 {[%emt 0:00:00]} Nf6 {[%emt 0:00:56]} 2. Nc3 {[%emt 0:01:12]} d5 {[%emt 0:00:08]} 3. Bf4 {[%emt 0:00:09]} a6 {[%emt 0:00:07]} 4. e3 {[%emt 0:00:28]} Bf5 {[%emt 0:00:08]} 5. f3 {[%emt 0:00:38]} e6 {[%emt 0:00:10]} 6. g4 {[%emt 0:00:04]} Bg6 {[%emt 0:00:06]} 7. h4 {[%emt 0:00:02]} h5 {[%emt 0:00:08]} 8. g5 {[%emt 0:00:23]} Nfd7 {[%emt 0:00:15]} 9. Bd3 {[%emt 0:00:04]} Bxd3 {[%emt 0:00:09]} 10. Qxd3 {[%emt 0:00:07]} g6 {[%emt 0:00:07]} 11. Nge2 {[%emt 0:00:25]} Bg7 {[%emt 0:13:55]} 12. e4 {[%emt 0:01:41]} c6 {[%emt 0:00:28]} 13. O-O-O {[%emt 0:19:25]} b5 {[%emt 0:02:20]} 14. Rde1 {[%emt 0:04:08]} Nb6 {[%emt 0:06:08]} 15. Be5 {[%emt 0:06:26]} Bxe5 {[%emt 0:03:08]} 16. dxe5 {[%emt 0:00:11]} N8d7 {[%emt 0:12:23]} 17. exd5 {[%emt 0:08:33]} cxd5 {[%emt 0:00:47]} 18. Ng3 {[%emt 0:14:48]} Qc7 {[%emt 0:04:35]} 19. f4 {[%emt 0:01:11]} Qc4 {[%emt 0:09:26]} 20. Qxc4 {[%emt 0:04:59]} Nxc4 {[%emt 0:00:56]} 21. Nce2 {[%emt 0:03:55]} Rc8 {[%emt 0:01:31]} 22. Nd4 {[%emt 0:00:46]} O-O {[%emt 0:06:57]} 23. Rh2 {[%emt 0:02:52]} Rfe8 {[%emt 0:14:45]} 24. Rhe2 {[%emt 0:01:02]} Nf8 {[%emt 0:02:34]} 25. Rf1 {[%emt 0:06:50]} Rc7 {[%emt 0:03:53]} 26. Rf3 {[%emt 0:07:49]} Na5 {[%emt 0:01:18]} 27. Rd3 {[%emt 0:05:16]} Nd7 {[%emt 0:02:57]} 28. Kb1 {[%emt 0:02:12]} Nb6 {[%emt 0:06:09]} 29. Rf3 {[%emt 0:03:19]} Nc6 {[%emt 0:00:31]} 30. Nxc6 {[%emt 0:04:00]} Rxc6 {[%emt 0:00:01]} 31. Rd2 {[%emt 0:00:03]} Rc4 {[%emt 0:02:59]} 32. b3 {[%emt 0:00:18]} Rc7 {[%emt 0:00:22]} 33. Ne2 {[%emt 0:00:37]} Rec8 {[%emt 0:00:15]} 34. Kb2 {[%emt 0:01:20]} Nd7 {[%emt 0:00:44]} 35. Rc3 {[%emt 0:01:19]} Nc5 {[%emt 0:00:46]} 36. Rd4 {[%emt 0:00:27]} Kf8 {[%emt 0:01:38]} 37. a3 {[%emt 0:00:52]} Ke7 {[%emt 0:00:14]} 38. Re3 {[%emt 0:00:29]} Ne4 {[%emt 0:01:23]} 39. c3 {[%emt 0:00:20]} a5 {[%emt 0:00:34]} 40. Rdd3 {[%emt 0:00:00]} Nc5 {[%emt 0:00:00]} 41. Rd1 {[%emt 0:02:55]} Nd7 {[%emt 0:18:51]} 42. Nd4 {[%emt 0:05:36]} Rb7 {[%emt 0:00:30]} 43. Nc2 {[%emt 0:02:23]} Nc5 {[%emt 0:03:57]} 44. Rf3 {[%emt 0:03:01]} Na6 {[%emt 0:03:03]} 45. Rd4 {[%emt 0:00:34]} Nb8 {[%emt 0:00:08]} 46. Rdd3 {[%emt 0:05:15]} Nc6 {[%emt 0:00:05]} 47. Rf2 {[%emt 0:07:34]} b4 {[%emt 0:01:55]} 48. cxb4 {[%emt 0:03:40]} axb4 {[%emt 0:00:03]} 49. axb4 {[%emt 0:01:57]} Nxb4 {[%emt 0:00:03]} 50. Rd4 {[%emt 0:00:58]} Rcb8 {[%emt 0:01:41]} 51. Nxb4 {[%emt 0:02:03]} Rxb4 {[%emt 0:00:01]} 52. Rxb4 {[%emt 0:00:39]} Rxb4 {[%emt 0:00:03]} 53. Ka3 {[%emt 0:00:05]} Re4 {[%emt 0:00:09]} 54. b4 {[%emt 0:00:06]} Kd7 {[%emt 0:00:02]} 55. Ka4 {[%emt 0:00:19]} Kc6 {[%emt 0:01:59]} 56. Ka5 {[%emt 0:00:06]} Rc4 {[%emt 0:00:39]} 57. Rf3 {[%emt 0:02:07]} Rc1 {[%emt 0:04:00]} 58. b5+ {[%emt 0:00:27]} Kb7 {[%emt 0:00:06]} 59. Rb3 {[%emt 0:00:28]} Ra1+ {[%emt 0:00:32]} 60. Kb4 {[%emt 0:00:01]} Rf1 {[%emt 0:00:01]} 61. Kc5 {[%emt 0:00:57]} Rxf4 {[%emt 0:00:04]} 62. Rh3 {[%emt 0:00:32]} Kc7 {[%emt 0:02:10]} 63. b6+ {[%emt 0:00:15]} Kb7 {[%emt 0:00:02]} 64. Ra3 {[%emt 0:00:22]} Rc4+ {[%emt 0:00:03]} 65. Kb5 {[%emt 0:00:04]} Kb8 {[%emt 0:00:18]} 66. Rf3 {[%emt 0:00:11]} Rxh4 {[%emt 0:01:35]} 67. Rxf7 {[%emt 0:00:05]} Rc4 {[%emt 0:00:02]} 68. Ka6 {[%emt 0:00:33]} Ra4+ {[%emt 0:00:03]} 69. Kb5 {[%emt 0:00:02]} Rc4 {[%emt 0:00:48]} 70. Rf6 {[%emt 0:02:18]} Rc8 {[%emt 0:02:19]} 71. Rxg6 {[%emt 0:00:24]} d4 {[%emt 0:02:12]} 72. Rxe6 {[%emt 0:00:37]} d3 {[%emt 0:01:14]} 73. Rd6 {[%emt 0:00:16]} Re8 {[%emt 0:00:03]} 74. e6 {[%emt 0:00:15]} d2 {[%emt 0:00:09]} 75. Ka6 {[%emt 0:00:24]} Kc8 {[%emt 0:00:43]} 76. Rxd2 {[%emt 0:01:12]} Rxe6 {[%emt 0:00:07]} 77. Rh2 {[%emt 0:00:30]} Re1 {[%emt 0:00:56]} 78. Rxh5 {[%emt 0:00:25]} Ra1+ {[%emt 0:00:02]} 79. Kb5 {[%emt 0:00:02]} Rb1+ {[%emt 0:00:01]} 80. Kc6 {[%emt 0:00:22]} Rc1+ {[%emt 0:00:02]} 81. Kd5 {[%emt 0:00:24]} Rb1 {[%emt 0:00:34]} 82. Rh8+ {[%emt 0:00:50]} Kb7 {[%emt 0:00:05]} 83. g6 {[%emt 0:01:00]} Rxb6 {[%emt 0:00:04]} 84. g7 {[%emt 0:00:10]} Rg6 {[%emt 0:00:03]} 85. g8=Q {[%emt 0:00:05]} 1-0

[Event "Mitropa Online Cup Women 2021"]
[Site "Hybrid"]
[Date "2021.05.04"]
[Round "6.3"]
[White "Heinatz, Gundula"]
[Black "Hapala, Elisabeth"]
[Result "1-0"]
[ECO "A45"]
[WhiteElo "2131"]
[BlackElo "2120"]
[Annotator "NA"]
[PlyCount "179"]
[EventDate "2021.05.04"]
[EventType "team-tourn"]
[EventCountry "NET"]
[SourceTitle "playchess.com"]
[Source "ChessBase"]
[SourceQuality "1"]
[WhiteTeam "Switzerland"]
[BlackTeam "Austria"]
[WhiteTeamCountry "SUI"]
[BlackTeamCountry "AUT"]
[TimeControl "40/5400+30:1800+30"]

1. d4 {[%emt 0:00:00]} Nf6 {[%emt 0:00:05]} 2. Bf4 {[%emt 0:00:17]} e6 {[%emt 0:00:07]} 3. e3 {[%emt 0:00:26]} c5 {[%emt 0:00:10]} 4. Nd2 {[%emt 0:01:34]} cxd4 {[%emt 0:03:17]} 5. exd4 {[%emt 0:01:06]} b6 {[%emt 0:02:22]} 6. Nc4 {[%emt 0:07:43]} d6 {[%emt 0:08:53]} 7. Qf3 {[%emt 0:05:17]} Nd5 {[%emt 0:07:31]} 8. Ne3 {[%emt 0:03:35]} Nc7 {[%emt 0:08:19]} 9. Bd3 {[%emt 0:11:38]} d5 {[%emt 0:12:07]} 10. Qg3 {[%emt 0:02:30]} Nba6 {[%emt 0:05:38]} 11. a4 {[%emt 0:04:31]} Bb7 {[%emt 0:03:10]} 12. Nf3 {[%emt 0:06:42]} Rc8 {[%emt 0:02:36]} 13. c3 {[%emt 0:00:40]} Nb8 {[%emt 0:01:51]} 14. a5 {[%emt 0:09:27]} b5 {[%emt 0:11:05]} 15. Bxc7 {[%emt 0:04:35]} Qxc7 {[%emt 0:00:15]} 16. Bxb5+ {[%emt 0:00:22]} Bc6 {[%emt 0:00:26]} 17. Bd3 {[%emt 0:00:54]} Qxg3 {[%emt 0:07:13]} 18. hxg3 {[%emt 0:00:09]} Nd7 {[%emt 0:00:37]} 19. g4 {[%emt 0:02:23]} Rb8 {[%emt 0:04:37]} 20. b4 {[%emt 0:01:37]} Bd6 {[%emt 0:09:09]} 21. g5 {[%emt 0:02:48]} Bb5 {[%emt 0:02:28]} 22. Bxb5 {[%emt 0:01:33]} Rxb5 {[%emt 0:00:04]} 23. g3 {[%emt 0:00:57]} Ke7 {[%emt 0:03:15]} 24. Kd2 {[%emt 0:03:12]} f6 {[%emt 0:00:41]} 25. Rae1 {[%emt 0:01:39]} Kf7 {[%emt 0:01:26]} 26. Ng4 {[%emt 0:01:21]} Nf8 {[%emt 0:00:49]} 27. gxf6 {[%emt 0:07:19]} gxf6 {[%emt 0:00:04]} 28. Rh5 {[%emt 0:07:52]} Kg7 {[%emt 0:01:42]} 29. Reh1 {[%emt 0:01:36]} Ng6 {[%emt 0:00:21]} 30. Ne3 {[%emt 0:02:36]} a6 {[%emt 0:01:25]} 31. Ne1 {[%emt 0:01:21]} Ne7 {[%emt 0:01:54]} 32. Nd3 {[%emt 0:00:58]} Ng6 {[%emt 0:00:28]} 33. f4 {[%emt 0:01:01]} Ne7 {[%emt 0:00:26]} 34. R5h3 {[%emt 0:00:58]} Kg6 {[%emt 0:01:13]} 35. Rh6+ {[%emt 0:00:33]} Kg7 {[%emt 0:00:03]} 36. g4 {[%emt 0:01:20]} Ng8 {[%emt 0:01:10]} 37. R6h3 {[%emt 0:00:28]} Ne7 {[%emt 0:00:20]} 38. Rg1 {[%emt 0:01:03]} h6 {[%emt 0:01:02]} 39. Rf3 {[%emt 0:01:05]} Kf7 {[%emt 0:00:23]} 40. Rh1 {[%emt 0:00:00]} Rbb8 {[%emt 0:00:00]} 41. Rfh3 {[%emt 0:06:31]} Kg7 {[%emt 0:11:32]} 42. Re1 {[%emt 0:04:19]} Kf7 {[%emt 0:02:29]} 43. Rf1 {[%emt 0:02:13]} Rbd8 {[%emt 0:06:11]} 44. Rh5 {[%emt 0:01:23]} Nc6 {[%emt 0:03:07]} 45. Rfh1 {[%emt 0:02:09]} Kg7 {[%emt 0:01:29]} 46. R5h3 {[%emt 0:06:00]} Be7 {[%emt 0:01:40]} 47. Re1 {[%emt 0:02:16]} Kf7 {[%emt 0:00:29]} 48. Kc2 {[%emt 0:01:42]} Rc8 {[%emt 0:02:39]} 49. Kd2 {[%emt 0:02:55]} Rcd8 {[%emt 0:00:03]} 50. Rb1 {[%emt 0:00:29]} Rb8 {[%emt 0:01:12]} 51. Rhh1 {[%emt 0:00:40]} Rb5 {[%emt 0:01:13]} 52. Nc2 {[%emt 0:01:05]} Rg8 {[%emt 0:03:25]} 53. Rbg1 {[%emt 0:00:33]} Kg7 {[%emt 0:00:17]} 54. Rh2 {[%emt 0:01:50]} Rh8 {[%emt 0:00:07]} 55. Re1 {[%emt 0:00:21]} Kf7 {[%emt 0:00:04]} 56. Rhe2 {[%emt 0:00:36]} e5 {[%emt 0:02:40]} 57. dxe5 {[%emt 0:00:38]} fxe5 {[%emt 0:00:23]} 58. Nxe5+ {[%emt 0:00:39]} Nxe5 {[%emt 0:00:02]} 59. fxe5 {[%emt 0:01:03]} Rg8 {[%emt 0:00:27]} 60. Rf1+ {[%emt 0:00:23]} Ke8 {[%emt 0:00:08]} 61. Nd4 {[%emt 0:01:19]} Rb8 {[%emt 0:00:20]} 62. Rg1 {[%emt 0:01:30]} h5 {[%emt 0:00:33]} 63. Reg2 {[%emt 0:00:18]} Bg5+ {[%emt 0:01:30]} 64. Kd3 {[%emt 0:00:14]} h4 {[%emt 0:00:38]} 65. Nf3 {[%emt 0:00:48]} Kd7 {[%emt 0:00:14]} 66. Rh1 {[%emt 0:00:31]} Ke6 {[%emt 0:00:12]} 67. Nxg5+ {[%emt 0:00:33]} Rxg5 {[%emt 0:00:03]} 68. Rxh4 {[%emt 0:00:04]} Kxe5 {[%emt 0:00:23]} 69. Rh6 {[%emt 0:00:13]} Ra8 {[%emt 0:01:15]} 70. Re2+ {[%emt 0:00:56]} Kf4 {[%emt 0:00:04]} 71. Rf6+ {[%emt 0:00:20]} Kxg4 {[%emt 0:00:12]} 72. Rg2+ {[%emt 0:00:20]} Kh5 {[%emt 0:00:08]} 73. Rxg5+ {[%emt 0:00:06]} Kxg5 {[%emt 0:00:02]} 74. Rd6 {[%emt 0:00:06]} Kf5 {[%emt 0:00:05]} 75. Rxd5+ {[%emt 0:00:12]} Ke6 {[%emt 0:00:02]} 76. c4 {[%emt 0:00:56]} Rh8 {[%emt 0:00:24]} 77. Kd4 {[%emt 0:00:23]} Rb8 {[%emt 0:00:26]} 78. Kc3 {[%emt 0:00:47]} Rh8 {[%emt 0:00:15]} 79. Rd3 {[%emt 0:00:11]} Rh5 {[%emt 0:00:56]} 80. Kb3 {[%emt 0:00:35]} Rg5 {[%emt 0:00:26]} 81. Rh3 {[%emt 0:01:33]} Rg6 {[%emt 0:01:05]} 82. b5 {[%emt 0:00:28]} axb5 {[%emt 0:00:07]} 83. cxb5 {[%emt 0:00:05]} Kd6 {[%emt 0:00:08]} 84. Rc3 {[%emt 0:00:35]} Rg1 {[%emt 0:00:40]} 85. a6 {[%emt 0:00:35]} Rb1+ {[%emt 0:00:31]} 86. Ka4 {[%emt 0:00:29]} Ra1+ {[%emt 0:00:22]} 87. Kb4 {[%emt 0:01:00]} Kd7 {[%emt 0:00:19]} 88. Ra3 {[%emt 0:00:56]} Rb1+ {[%emt 0:01:36]} 89. Kc5 {[%emt 0:01:03]} Kc7 {[%emt 0:01:32]} 90. a7 {[%emt 0:00:12]} 1-0